Cogmind - Beta 14 @@@ ROGUE MODE // 2024.09.29 @ 15:30:47 Player: Lunace Result: Destroyed by G-47 Trooper with Particle Gun Performance ------------- Evolutions (2) 1000 Regions Visited (7) 1400 Robots Destroyed (46) 230 Value Destroyed (2580) 2580 Prototype IDs (28) 560 Alien Tech Used (0) 0 Bonus (813) 813 TOTAL SCORE: 6583 Bonus ------- High Alert Combat Kills 238 Follower Combat Kills 131 Entered Garrisons 200 Aligned with FarCom 300 Friendly Fire -56 Cogmind --------- Core Integrity 0/550 Matter 152/300 Energy 240/240 System Corruption 21% Temperature Cool (-91) Movement Walking (190) Ox1 Location -8/Materials Parts ------- > --- POWER (1) -------- Nuclear Core > --- PROPULSION (4) --- Aluminum Leg Flexi-carbon Leg > --- UTILITY (4) ------ Cryofiber Web Improved Heat Sink Large Storage Unit Structural Scanner > --- WEAPON (2) ------- Flak Gun Impact Mace > --- INVENTORY (15) --- Improved Hover Unit Aerolev Unit Improved Heat Sink Small Storage Unit Advanced Visual Processing Unit Improved Signal Interpreter Cloak of Protection Peak State ------------ > --- POWER ------------ Reinforced Ion Engine > --- PROPULSION ------- Light Treads Light Treads Light Treads > --- UTILITY ---------- Cryofiber Web Large Storage Unit Cloak of Protection Hardened Medium Armor Plating > --- WEAPON ----------- Flak Gun Impact Mace > --- INVENTORY -------- Improved Ion Engine Improved Hover Unit Aerolev Unit Cooling System Small Storage Unit Medium Storage Unit Structural Scanner Advanced Visual Processing Unit Improved Signal Interpreter Pulse Rifle Pulse Rifle Flak Gun Flak Gun [Rating: 32] Favorites ----------- Power Improved Ion Engine Engine Improved Ion Engine Power Core Nuclear Core Propulsion Light Treads Treads Light Treads Leg Aluminum Leg Wheel Compact Wheel Flight Unit Improved VTOL Module Utility Large Storage Unit Device Cryofiber Web Storage Large Storage Unit Processor Target Analyzer Hackware System Shield Protection Light Armor Plating Weapon Flak Gun Energy Gun EM Pulse Gun Ballistic Gun Flak Gun Ballistic Cannon Assault Cannon Launcher Grenade Launcher Impact Weapon Impact Mace Slashing Weapon Chainsword Build | -11 -10 -10 -10 -9 -8 -8 -8 ------- Run | Yrd Mat Min Exi Min Mat Gar Mat Slots Evolved 4 | . . . . . 4 . . Power . | . . . . . . . . Propulsion 2 | . . . . . 2 . . Utility 2 | . . . . . 2 . . Weapon . | . . . . . . . . Parts Attached 92 | 7 1 2 . . 34 43 5 Power 7 | 1 . . . . 2 3 1 Engine 6 | 1 . . . . 2 3 . Core 1 | . . . . . . . 1 Reactor . | . . . . . . . . Propulsion 18 | 2 . . . . 6 10 . Treads 4 | 2 . . . . 2 . . Leg 12 | . . . . . 2 10 . Wheel 1 | . . . . . 1 . . Hover . | . . . . . . . . Flight 1 | . . . . . 1 . . Utility 29 | 2 1 1 . . 14 10 1 Device 17 | 1 . . . . 7 8 1 Storage 3 | 1 1 . . . 1 . . Processor 1 | . . . . . 1 . . Hackware 1 | . . . . . 1 . . Protection 7 | . . 1 . . 4 2 . Artifact . | . . . . . . . . Weapon 38 | 2 . 1 . . 12 20 3 Energy Gun 4 | 1 . . . . 1 2 . Energy Cannon . | . . . . . . . . Ballistic Gun 18 | 1 . . . . 4 11 2 Ballistic Cannon 1 | . . . . . 1 . . Launcher 1 | . . 1 . . . . . Special Weapon . | . . . . . . . . Impact Weapon 11 | . . . . . 4 6 1 Slashing Weapon 3 | . . . . . 2 1 . Piercing Weapon . | . . . . . . . . Special Melee Weapon . | . . . . . . . . Unidentified Prototypes 4 | . . . . . 4 . . Corrupted Parts 1 | . . . . . . 1 . System Corruption 10 | . . . . . . 10 . Parts Lost 18 | . . . . . 4 12 2 Power 2 | . . . . . . 2 . Propulsion 8 | . . . . . 1 6 1 Utility 4 | . . . . . 2 2 . Weapon 4 | . . . . . 1 2 1 Highest Loss Streak 7 | . . . . . 2 7 2 To Critical Strikes . | . . . . . . . . Average Slot Usage (%) 90 | . 100 100 100 100 83 89 81 Engine 10 | . 14 14 14 14 9 8 2 Treads 15 | . 28 28 28 28 15 7 . Leg 10 | . . . . . 4 22 23 Wheel 1 | . . . . . 5 . . Device 11 | . 14 3 . . 10 17 23 Storage 10 | . 14 14 14 14 9 9 9 Protection 8 | . . 10 14 14 9 5 . Ballistic Gun 11 | . 14 14 14 14 10 9 7 Launcher 3 | . . 12 14 14 . . . Impact Weapon 4 | . . . . . 4 7 8 Peak Build Rating 32 | 7 7 7 8 8 31 32 30 Average Rating 19 | 5 7 7 7 8 22 25 27 On Entrance 11 | . 7 7 7 8 8 27 28 Naked Turns . | . . . . . . . . Heaviest Build 54 | 15 20 23 23 23 47 54 37 Greatest Support 60 | 40 40 40 40 40 60 60 40 Greatest Overweight (x) 12 | . . . . . 2 12 1 Average Overweight (x) . | . . . . . 1 . . Largest Inventory Capacity 15 | 8 10 10 10 10 15 15 15 Average Capacity 13 | 7 8 10 10 10 13 15 15 Most Carried 15 | 2 5 9 10 9 15 14 11 Average Carried 10 | 1 4 8 9 8 12 10 9 Final Capacity 15 | 8 10 10 10 10 15 15 15 Final Carried 14 | 2 5 9 9 8 14 10 7 Class Distribution -------------------- 73% | Mutant 26% | Scavenger-Mutant Dominant Class ---------------- Mutant | -10/Materials Mutant | -10/Mines Mutant | -10/Exiles Mutant | -9/Mines Mutant | -8/Materials Scavenger-Mutant | -8/Garrison Scavenger-Mutant | -8/Materials Resources | -11 -10 -10 -10 -9 -8 -8 -8 ----------- Run | Yrd Mat Min Exi Min Mat Gar Mat Matter Collected 1829 | 279 10 112 . . 555 825 48 Remotely . | . . . . . . . . Salvage Created 1349 | 57 . 17 . 3 512 664 96 Parts 79 | 9 . 6 . . 27 36 1 Haulers Intercepted 1 | . . . . . 1 . . Recyclers Shooed 1 | . . 1 . . . . . Parts Field Recycled . | . . . . . . . . Retrieved Matter . | . . . . . . . . Parts Self-Destructed . | . . . . . . . . Prevented . | . . . . . . . . Kills | -11 -10 -10 -10 -9 -8 -8 -8 ------- Run | Yrd Mat Min Exi Min Mat Gar Mat Combat Hostiles Destroyed 40 | . . 3 . 2 10 24 1 Melee 5 | . . . . . 3 2 . Guns 29 | . . 1 . . 7 21 . AOE 4 | . . 2 . 2 . . . Classes Destroyed 14 | 1 . 2 . . 8 2 1 Worker 1 | . . . . . 1 . . Builder 1 | . . . . . 1 . . Tunneler 3 | 2 . . . . 1 . . Hauler 1 | . . . . . 1 . . Recycler 1 | . . . . . 1 . . Mechanic 1 | . . . . . . . 1 Watcher 1 | . . . . . 1 . . Swarmer 13 | . . 2 . . 3 8 . Saboteur 1 | . . . . . . 1 . Grunt 13 | . . . . . 2 10 1 Sentry 6 | . . . . . 3 3 . Hunter 2 | . . . . . 2 . . Programmer 2 | . . . . . . 2 . Assembled 3 | . . 1 . 2 . . . Best Kill Streak 7 | 1 . 2 . 2 3 7 1 Combat Bots Only 7 | . . 2 . 2 3 7 1 Max Kills in Single Turn 2 | 1 . 2 . 2 1 2 1 Gunslinging . | . . . . . . . . Exploded 2 | . . 2 . 2 . . . Melee 1 | . . . . . 1 1 . Uniques/NPCs Destroyed . | . . . . . . . . Combat | -11 -10 -10 -10 -9 -8 -8 -8 -------- Run | Yrd Mat Min Exi Min Mat Gar Mat Hostile Shots Fired 303 | . . 9 . 3 76 197 18 Missed 80 | . . . . 1 23 55 1 Damage Taken 3254 | 9 . 173 . 100 721 1996 255 Core 599 | . . 11 . 25 114 404 45 Absorbed by Shields 20 | . . . . . . 20 . Regen/Repaired (Parts) 188 | . . . . . 188 . . Core Remaining (%) 92 | 100 . . . 85 . . . Volleys Fired 125 | 3 . 19 . 4 30 66 3 Largest 2 | 2 . 2 . 1 2 2 2 Hottest 126 | 60 . 60 . 30 56 126 56 Shots Fired 180 | 6 . 20 . 4 45 101 4 Gun 170 | 6 . 15 . . 44 101 4 Cannon . | . . . . . . . . Launcher 10 | . . 5 . 4 1 . . Special . | . . . . . . . . Kinetic 121 | 3 . 14 . . 44 56 4 Thermal 45 | . . . . . . 45 . Explosive 10 | . . 5 . 4 1 . . Electromagnetic 4 | 3 . 1 . . . . . Robot Hit Streak 28 | 4 . 5 . 1 9 28 4 Robot Miss Streak 20 | 1 . 3 . 1 20 14 5 Penetration Max . | . . . . . . . . Secondary Targets 4 | . . . . . . 4 . Max Gunslinging Chain 1 | . . . . . . 1 . Shots Hit Robots 180 | 5 . 10 . 1 50 105 9 Core Hits 138 | 2 . 9 . 5 46 72 4 Critical Kills 1 | . . . . . 1 . . Critical Parts Destroyed 9 | . . . . . 2 7 . Critical Strikes 12 | . . . . . 3 9 . Burn 2 | . . . . . . 2 . Smash 10 | . . . . . 3 7 . Melee Attacks 112 | . . . . . 29 72 11 Impact 110 | . . . . . 27 72 11 Slashing 2 | . . . . . 2 . . Piercing . | . . . . . . . . Sneak Attacks 2 | . . . . . 1 . 1 Combat Hostiles . | . . . . . . . . Follow-up Attacks . | . . . . . . . . Damage Inflicted 4279 | 77 . 356 . 110 1116 2240 380 Guns 2209 | 54 . 116 . . 487 1483 69 Cannons . | . . . . . . . . Explosions 411 | 23 . 240 . 110 38 . . Melee 1659 | . . . . . 591 757 311 Ramming . | . . . . . . . . Kinetic 1439 | 14 . 104 . . 487 765 69 Thermal 741 | 23 . . . . . 718 . Explosive 388 | . . 240 . 110 38 . . Electromagnetic 52 | 40 . 12 . . . . . Impact 1630 | . . . . . 562 757 311 Slashing 29 | . . . . . 29 . . Piercing . | . . . . . . . . Highest Corruption 21 | . . . . . 8 21 21 Average Corruption 7 | . . . . . 6 8 21 Corruption Purged . | . . . . . . . . Corruption Blocked . | . . . . . . . . Effects 109 | . . . . . 39 59 11 Message Errors 17 | . . . . . 7 9 1 Matter Fused 34 | . . . . . 13 20 1 Heat Flow Errors 13 | . . . . . 5 8 . Energy Discharges 13 | . . . . . 4 6 3 Parts Rejected 1 | . . . . . . . 1 Parts Fused 1 | . . . . . 1 . . Data Loss (minor) 13 | . . . . . 5 6 2 Data Loss (major) 7 | . . . . . 3 3 1 Misfires 2 | . . . . . . 2 . Alerts 3 | . . . . . . 1 2 Weapon Failures 5 | . . . . . 1 4 . Overload Shots . | . . . . . . . . Overflow Damage 746 | . . 6 . . 210 445 85 Projectiles . | . . . . . . . . Explosions 15 | . . 6 . . 9 . . Melee 731 | . . . . . 201 445 85 Knockbacks 6 | . . . . . 2 1 3 Impact 6 | . . . . . 2 1 3 Kinetic . | . . . . . . . . Secondary . | . . . . . . . . Self-Inflicted Damage 164 | 9 . 75 . 80 . . . Shots 7 | 1 . 2 . 4 . . . Rammed . | . . . . . . . . Targets Rammed . | . . . . . . . . Kicked . | . . . . . . . . Crushed . | . . . . . . . . Highest Temperature 242 | 12 . 18 . 18 242 145 . Average Temperature 78 | 12 . 10 . 14 121 49 . Received Heat Transfer 1355 | . . 120 . 20 252 828 135 Effects 3 | . . . . . 3 . . Interference 3 | . . . . . 3 . . Siege Activations . | . . . . . . . . Robots Corrupted 5 | . . . . . 2 1 2 Combat Hostiles 2 | . . . . . . 1 1 Parts Fried 8 | . . . . . 5 . 3 Impact Corruptions 28 | . . . . . 7 18 3 Robots Melted . | . . . . . . . . Combat Hostiles . | . . . . . . . . Parts Melted 2 | . . . . . . 2 . Heat Transferred 1752 | 50 . . . . . 1702 . Parts Sabotaged 11 | . . . . . . 11 . Parts Stolen . | . . . . . . . . Parts Stripped . | . . . . . . . . Power Chain Reactions 1 | 1 . . . . . . . Alert | -11 -10 -10 -10 -9 -8 -8 -8 ------- Run | Yrd Mat Min Exi Min Mat Gar Mat Peak Influence 1330 | 10 24 166 . 11 204 1330 686 Initial 648 | . 6 9 . . 3 84 648 Average 300 | 4 18 72 . 6 73 633 657 Maximum Alert Level 4 | . . . . . 1 4 2 Low Security (%) 60 | 100 100 100 . 100 97 6 . Level 1 9 | . . . . . 2 22 . Level 2 17 | . . . . . . 35 100 Level 3 8 | . . . . . . 22 . Level 4 4 | . . . . . . 12 . Level 5 . | . . . . . . . . High Security . | . . . . . . . . Max Security . | . . . . . . . . Squads Dispatched 5 | . 1 . . . 3 . 1 Investigation 2 | . 1 . . . 1 . . Extermination . | . . . . . . . . Reinforcement 2 | . . . . . 2 . . Assault . | . . . . . . . . Garrison 1 | . . . . . . . 1 Intercept . | . . . . . . . . Searches Triggered . | . . . . . . . . Construction Impeded . | . . . . . . . . Haulers Reinforced . | . . . . . . . . Active Scanning Responses . | . . . . . . . . Cargo Convoy Interrupts . | . . . . . . . . Stealth | -11 -10 -10 -10 -9 -8 -8 -8 --------- Run | Yrd Mat Min Exi Min Mat Gar Mat Distress Signals 2 | . . . . . 1 . 1 Communications Jammed . | . . . . . . . . Distress Signals . | . . . . . . . . Times Spotted 65 | . . 11 . 2 16 33 3 Peak Tracking Total 8 | . . 3 . 2 4 8 5 Tactical Retreats 8 | . . . . . 2 4 2 Traps | -11 -10 -10 -10 -9 -8 -8 -8 ------- Run | Yrd Mat Min Exi Min Mat Gar Mat Traps Triggered 8 | . 1 . . . 3 4 . Indirectly . | . . . . . . . . Trap Hack Attempts . | . . . . . . . . Triggered . | . . . . . . . . Disarmed . | . . . . . . . . Reprogrammed . | . . . . . . . . Reused . | . . . . . . . . Traps Extracted . | . . . . . . . . Installed . | . . . . . . . . Triggered . | . . . . . . . . Most Traps Carried 4 | . . 4 4 4 4 . . Machines | -11 -10 -10 -10 -9 -8 -8 -8 ---------- Run | Yrd Mat Min Exi Min Mat Gar Mat Machines Disabled 11 | . . . . . 1 10 . Max in Single Turn 1 | . . . . . 1 1 . Garrison Relay 6 | . . . . . . 6 . Machines Repaired . | . . . . . . . . Machines Dismantled . | . . . . . . . . Machines Sabotaged . | . . . . . . . . Overloaded Fab Kills . | . . . . . . . . Hacking | -11 -10 -10 -10 -9 -8 -8 -8 --------- Run | Yrd Mat Min Exi Min Mat Gar Mat Machines Accessed 21 | . 2 . 2 . 12 4 1 Terminals 13 | . 2 . . . 7 4 . Fabricators . | . . . . . . . . Repair Stations 2 | . . . . . 1 . 1 Recycling Units 2 | . . . . . 2 . . Scanalyzers 1 | . . . . . 1 . . Garrison Access 1 | . . . . . 1 . . Total Hacks 59 | . 4 . 3 . 41 9 2 Successful 31 | . 2 . 3 . 22 4 . Failed 28 | . 2 . . . 19 5 2 Catastrophic 6 | . . . . . 3 2 1 Database Lockouts . | . . . . . . . . Manual 34 | . 4 . 1 . 27 2 . Terminals 42 | . 4 . . . 29 9 . Fabricators . | . . . . . . . . Repair Stations 4 | . . . . . 2 . 2 Recycling Units 6 | . . . . . 6 . . Scanalyzers 3 | . . . . . 3 . . Garrison Access 1 | . . . . . 1 . . Terminal Hacks 10 | . . . 3 . 3 4 . Record 2 | . . . 2 . . . . Open Door 1 | . . . . . . 1 . Emergency Access Points 1 | . . . . . . 1 . Terminal Index 1 | . . . . . 1 . . Locate Traps 2 | . . . . . 2 . . Garrison Registry 1 | . . . . . . 1 . Patrol Navigation 1 | . . . . . . 1 . Derelict Proto ID Bank 1 | . . . 1 . . . . Fabricator Hacks . | . . . . . . . . Repair Station Hacks 2 | . . . . . 2 . . Scan Component 1 | . . . . . 1 . . Repair 1 | . . . . . 1 . . Recycling Unit Hacks 2 | . . . . . 2 . . Retrieve Components 2 | . . . . . 2 . . Scanalyzer 3 | . . . . . 3 . . Insert Component 1 | . . . . . 1 . . Analyze 2 | . . . . . 2 . . Garrison Access Hacks 1 | . . . . . 1 . . Unlock Access 1 | . . . . . 1 . . Unauthorized Hacks 13 | . 2 . . . 11 . . Terminals 12 | . 2 . . . 10 . . Botnet 3 | . . . . . 3 . . Operators 1 | . . . . . 1 . . Skim 8 | . 2 . . . 6 . . Fabricators . | . . . . . . . . Repair Stations . | . . . . . . . . Recycling Units 1 | . . . . . 1 . . Recyclers 1 | . . . . . 1 . . Scanalyzers . | . . . . . . . . Garrison Access . | . . . . . . . . Data Cores Recovered . | . . . . . . . . Used . | . . . . . . . . Hacking Detections 16 | . 2 . . . 9 4 1 Full Trace Events . | . . . . . . . . Feedback Events . | . . . . . . . . Feedback Blocked . | . . . . . . . . Robot Schematics Acquired . | . . . . . . . . Robots Built . | . . . . . . . . Authchips . | . . . . . . . . Time . | . . . . . . . . Total Robot Build Rating . | . . . . . . . . Part Schematics Acquired 1 | . . . . . 1 . . Parts Built . | . . . . . . . . Authchips . | . . . . . . . . Time . | . . . . . . . . Total Part Build Rating . | . . . . . . . . Parts Repaired 1 | . . . . . 1 . . Time 38 | . . . . . 38 . . Parts Recycled . | . . . . . . . . Recycled Matter . | . . . . . . . . Retrieved Matter . | . . . . . . . . Retrieved Components 7 | . . . . . 7 . . Parts Scanalyzed 1 | . . . . . 1 . . Part Schematics Acquired 1 | . . . . . 1 . . Parts Damaged . | . . . . . . . . Bothacking | -11 -10 -10 -10 -9 -8 -8 -8 ------------ Run | Yrd Mat Min Exi Min Mat Gar Mat Used RIF Installer . | . . . . . . . . Robots Hacked . | . . . . . . . . Non-combat . | . . . . . . . . Combat . | . . . . . . . . Robot Hacks Applied . | . . . . . . . . Relay Couplers Released 27 | . . . . . . 27 . Machine Destruction 27 | . . . . . . 27 . Fabnet Peak Effective % . | . . . . . . . . Robots Rewired . | . . . . . . . . Allies Hacked . | . . . . . . . . Hacks Repelled . | . . . . . . . . Allies | -11 -10 -10 -10 -9 -8 -8 -8 -------- Run | Yrd Mat Min Exi Min Mat Gar Mat Total Allies 8 | . . 6 . . . 2 . Largest Group 3 | . . 3 3 . . 2 . Highest-Rated Group 73 | . . 73 73 . . 59 . Highest-Rated Ally 39 | . . 31 31 . . 39 . Total Orders . | . . . . . . . . Ally Attacks 55 | . . 26 . . . 29 . Total Damage 559 | . . 314 . . . 245 . Kills 12 | . . 8 . . . 4 . Allies Corrupted 1 | . . . . . . 1 . Allies Melted . | . . . . . . . . Intel | -11 -10 -10 -10 -9 -8 -8 -8 ------- Run | Yrd Mat Min Exi Min Mat Gar Mat Robot Analysis Total . | . . . . . . . . Derelict Logs Recovered 2 | . . 1 . 1 . . . Drone Launches . | . . . . . . . . Drone Recoveries . | . . . . . . . . Exploration | -11 -10 -10 -10 -9 -8 -8 -8 ------------- Run | Yrd Mat Min Exi Min Mat Gar Mat Turns Passed 5406 | 95 172 646 408 241 1774 1867 203 Spaces Moved 2869 | 47 105 363 254 146 947 918 89 Core 6 | 3 . . . . . 3 . Treads 1382 | 44 105 363 254 146 346 124 . Legs 880 | . . . . . . 791 89 Wheels 601 | . . . . . 601 . . Hover . | . . . . . . . . Flight . | . . . . . . . . Fastest Speed 50 | 50 160 160 160 160 130 120 120 Average Speed 144 | 152 160 160 160 160 144 131 131 Slowest Speed 650 | 160 160 160 160 160 320 650 190 Overloaded Moves . | . . . . . . . . Propulsion Burnouts . | . . . . . . . . Robots Hopped . | . . . . . . . . Cave-ins Triggered . | . . . . . . . . Exploration Rate (%) 46 | 4 19 84 64 34 75 84 8 Regions Visited 7 Branch Regions 3 Pre-discovered Areas 1 | . . . 1 . . . . Known Exits Taken 1 | . . . . . 1 . . Unknown Exits Taken 5 | 1 1 1 1 1 . . . Scrap Searched 2 | . . 2 . . . . . Spaces Dug 14 | . . . . . 7 4 3 Terrain Destroyed 78 | . . 43 . 13 15 4 3 Melee 14 | . . . . . 7 4 3 Projectile . | . . . . . . . . AOE 64 | . . 43 . 13 8 . . Terrain Rammed . | . . . . . . . . Walls Destroyed . | . . . . . . . . Machines Disabled . | . . . . . . . . Actions | -11 -10 -10 -10 -9 -8 -8 -8 --------- Run | Yrd Mat Min Exi Min Mat Gar Mat Total 3732 | 61 109 407 257 150 1256 1341 151 Wait 445 | 2 . 20 . . 167 214 42 Move 2863 | 46 104 362 253 145 947 917 89 Hop . | . . . . . . . . Pick Up 32 | 3 3 4 2 . 18 2 . Fast Attach 48 | 6 . . . . 21 21 . Attach 17 | 1 . . . . 5 8 3 Detach 6 | . . . . . 2 4 . Swap 28 | . 1 2 . . 9 14 2 Drop 40 | . 1 . 2 1 28 7 1 Fire 125 | 3 . 19 . 4 30 66 3 Melee 112 | . . . . . 29 72 11 Ram . | . . . . . . . . Kick . | . . . . . . . . Crush . | . . . . . . . . Escape Stasis 16 | . . . . . . 16 . Rewire . | . . . . . . . . Trap . | . . . . . . . . Miscellaneous . | . . . . . . . . Route ------- -11/Scrapyard -10/Materials -10/Mines (discovered 2 exits: [*Mat] / *Exi) -10/Exiles -9/Mines -8/Materials (discovered 4 exits: *Fac x3 / Gar) -8/Garrison (discovered 3 exits: *Mat x3) -8/Materials History --------- Turn | Location | Event 4 | -11/Scrapyard | Discovered new exit (range 16) 96 | -11/Scrapyard | Entered Materials 257 | -10/Materials | Discovered new exit (range 8) 268 | -10/Materials | Entered Mines 268 | -10/Mines | Assisted by bots powering up and referring to "LRC-V3" 315 | -10/Mines | Build established: Mutant 318 | -10/Mines | Found a hidden stash of uninstalled traps 422 | -10/Mines | Assembled infested the area 427 | -10/Mines | Assisted by a Guerilla fighting off Assembled 485 | -10/Mines | Received a Rocket Launcher from a helpful Derelict 498 | -10/Mines | Lost 3 allies 531 | -10/Mines | Discovered new exit (range 9) 580 | -10/Mines | Learned location of 2 exits from Materials 663 | -10/Mines | Received a Mining Laser from a helpful Derelict 907 | -10/Mines | Deemed a non-threat by the Exiles lab entrance 907 | -10/Mines | Discovered new exit (range 5) 914 | -10/Mines | Entered Exiles 914 | -10/Exiles | Accompanied by 3 allies 944 | -10/Exiles | Led the pair of lost Derelicts to a safe place 954 | -10/Exiles | Met 8R-AWN 982 | -10/Exiles | Met EX-HEX 1098 | -10/Exiles | Met EX-BIN 1118 | -10/Exiles | Aligned with FarCom system 1119 | -10/Exiles | Given EX-Vault access code 1156 | -10/Exiles | Opened EX-Vault 1165 | -10/Exiles | Found Cloak of Protection 1196 | -10/Exiles | Warned to stay clear of 0b10 Research branches 1241 | -10/Exiles | Met EX-DEC 1247 | -10/Exiles | Learned location of Zion (-6) 1300 | -10/Exiles | Discovered new exit (range 14) 1322 | -10/Exiles | Left Exiles lab with Cloak of Protection 1322 | -10/Exiles | Entered Mines 1341 | -9/Mines | Discovered new exit (range 10) 1387 | -9/Mines | Learned location of 1 exit from Proximity Caves 1411 | -9/Mines | Excavation squad dispatched 1411 | -9/Mines | A large section of the Mines collapsed 1452 | -9/Mines | Met a Derelict bent on vengeance 1563 | -9/Mines | Entered Materials 1563 | -8/Materials | Evolved 4 slots: Propulsion x2, Utility x2 1564 | -8/Materials | Identified exit to Factory 2280 | -8/Materials | Discovered exit to Factory (range 4) 2936 | -8/Materials | Learned 4 Factory zone layouts 2986 | -8/Materials | Learned 4 Factory zone layouts 3055 | -8/Materials | Learned location of 2 exits from Factory 3074 | -8/Materials | Learned location of 1 exit from Storage 3083 | -8/Materials | Learned location of 2 exits from Lower Caves 3100 | -8/Materials | Learned location of 1 exit from Lower Caves 3126 | -8/Materials | Learned Factory terminal intel 3162 | -8/Materials | Learned location of 3 exits from Factory 3302 | -8/Materials | Repaired Hrd. Medium Armor Plating 3337 | -8/Materials | Identified exit to Garrison 3337 | -8/Materials | Entered Garrison 3388 | -8/Garrison | Triggered checkpoint 3419 | -8/Garrison | Garrison Relay disabled 3504 | -8/Garrison | Garrison Relay disabled 3565 | -8/Garrison | Triggered checkpoint 3825 | -8/Garrison | Triggered checkpoint 3879 | -8/Garrison | Core integrity fell below 50% 3912 | -8/Garrison | Destroyed 7 combat bots 3974 | -8/Garrison | Lost 7 parts (1p3n1u2w) 4092 | -8/Garrison | Garrison Relay disabled 4157 | -8/Garrison | Discovered new exit (range 14) 4202 | -8/Garrison | Build established: Scavenger-Mutant 4325 | -8/Garrison | Discovered new exit (range 10) 4420 | -8/Garrison | Rescued a captive Derelict 4438 | -8/Garrison | Rescued a captive Derelict 4536 | -8/Garrison | Garrison Relay disabled 4583 | -8/Garrison | Discovered new exit (range 15) 4621 | -8/Garrison | Triggered checkpoint 4727 | -8/Garrison | Discovered new exit (range 19) 4727 | -8/Garrison | Discovered new exit (range 51) 4727 | -8/Garrison | Discovered new exit (range 54) 4751 | -8/Garrison | Triggered checkpoint 4813 | -8/Garrison | Garrison Relay disabled 4954 | -8/Garrison | Core integrity fell below 20% 5033 | -8/Garrison | Garrison Relay disabled 5099 | -8/Garrison | System corruption reached 10% 5144 | -8/Garrison | Lost 3 parts (2n1u) 5204 | -8/Garrison | Entered Materials 5364 | -8/Materials | Garrison activated, responded to threat 5407 | -8/Materials | Destroyed by G-47 Trooper with Particle Gun Last Messages --------------- 05339_ Flak Gun destroyed. 05339_ Aluminum Leg destroyed. 05344_ K-01 Serf collects debris. 05346_ R-06 Scavenger collects Corrupted Particle Gun. 05349_ System corrupted: Matter fused (-9). 05359_ G-47 Trooper knocked back. 05364_ G-47 Trooper calls for garrison reinforcements. 05364_ ALERT: Activating Garrison Access M001. 05366_ System corrupted: Flak Gun rejected. 05366_ Integration Channel disabled. 05367_ R-06 Scavenger collects Flak Gun. 05367_ Destroyed Particle Gun. 05373_ K-01 Serf collects debris. 05381_ System corrupted: Energy discharge (-86). 05381_ K-01 Serf collects debris. 05397_ System corrupted: IFF burst signal emitted. 05399_ K-01 Serf collects debris. Map ----- +----------------------------------------------------+ | | | | | | | | | | | | | | | | | | | | | | | | | | | | | | | | | | | | | ??????????????????????????#################??????? | | ??????????????????????????## # ??????? | | ??????????????????????????## # ??????? | | ?????????????????????????###* """ """ # ??????? | | ????????????????????????#### """"""""" # ??????? | | ????????????????###########;g """" # ??????? | | ????????????###?##########;# # ??????? | | ???????????? / ]@##/#######"##+## | | ????????????## " " """r g ## ######## [%##+###### | | ?????????????????" """ + | | ?????????????????" """ * # | | ???????????????? # ######### g ######### | | ????????????????########### ########## ######### | | ????????????????###########+####???### g###??????? | | ????????????????????# # #????## ##???????? | | ????????????######### # #????## ##???????? | | ???????? # " "" #????## ##???????? | | ???????????????###### + "R"" #????# #???????? | | ????????????????????# # """" #???## ##??????? | | ????????????????????# # #??? # ##??????? | | ???????????????????## ########??? # ##??????? | | ???????????????????# #????????? # #####??????? | | ???????????????????# #????????? # # ??????? | | ???????????????????# #????????? # ???????????? | | ???????????????????# #????????? # ???????????? | | ???????????????????# #????????? # ???????????? | | ???????????????????## ##?????????## ???????????? | | ????????????????????# #?????????? ???????????? | | ????????????????????# #????????????????????????? | | ????????????????????# #????????????????????????? | | ????????????????????# #????????????????????????? | | ????????????????????# #????????????????????????? | +----------------------------------------------------+ Best States ------------- Heat Dissipation 87 Energy Generation 14 Energy Capacity 265 Matter Stores 300 Matter Capacity 300 Sight Range 16 Terrain Scan Density 10 Cloak Strength 5 Base Temperature (-) 100 Armor Coverage 375 Evasion (%) 55 Target Analysis 5 Recoil Reduction 3 Defensive Hacking 10 Item Schematics ----------------- Aerolev Unit | -8/Materials | Scanalyzed Robot Schematics ------------------ None Fabricated ------------ Nothing Alien Tech Used ----------------- None Achievements -------------- None Challenges ------------ None Game ------ Seed NovaModifiedInjector Manual? 0 Play Time 00:40:53 Cumulative 378.8 hours Start 2024.09.29 @ 14:26:24 End 2024.09.29 @ 15:30:47 Sessions 1 Manual Loads 0 Difficulty Rogue Special Mode None Game No. 380 Rogue 375 Adventurer 5 Explorer 0 Win Type - Total 8 Types 5/0/0/3/0/0/0/0/0 Lore% 79 Gallery% 84 Achievement% 71 Wizard Run 0 Options --------- Layout 1 ASCII 0 Keyboard 0 Movement Arrows Keybinds 0 Fullscreen 1 Font 24/Terminus Map View 50x35 Zoom Use 0% Tactical HUD 1 Map Filters NONE Filters NONE Steam 1 RUN: 67b5729f-4cbd-4528-a774-fc88142c8f05